{"text_format":"2","workbook":"xlsx","n_sheets":2,"sheets":["BPF overview","meta-SPC1"],"not_rendered":{"charts":0,"images":0,"macros":0,"external_links":0,"defined_names":0,"comments":0,"pivot_tables":0},"unopened":[],"bounds":{"document_bytes":16777216,"sheet_cells":100000,"run_cost":"one","rows_first":2000,"rows_last":500,"rows_between":2000,"halvings":0,"cell_chars":16384,"cell_head_chars":4096},"cells_cut":0,"cells_raw":0,"read":"whole","date_system":"1900"}

{"sheet":"BPF overview","index":0,"n_rows":34,"n_cols":14,"rows_kept":34,"cut":false,"hidden":false,"merged":[[30,11,30,12],[32,9,32,10],[33,9,33,10],[31,9,31,10],[33,7,33,8],[31,11,31,12],[32,11,32,12],[33,11,33,12],[30,7,30,8],[31,7,31,8],[32,7,32,8],[29,11,29,12],[17,11,17,12],[18,11,18,12],[20,11,20,12],[21,11,21,12],[22,11,22,12],[23,11,23,12],[26,11,26,12],[27,11,27,12],[28,11,28,12],[17,5,17,6],[20,9,20,10],[17,9,17,10],[25,11,25,12],[22,9,22,10],[23,9,23,10],[24,7,24,8],[23,7,23,8],[29,7,29,8],[25,9,25,10],[26,9,26,10],[21,9,21,10],[18,5,18,6],[18,9,18,10],[25,7,25,8],[26,7,26,8],[28,7,28,8],[29,9,29,10],[27,1,27,2],[16,7,16,8],[18,7,18,8],[20,7,20,8],[17,7,17,8],[21,7,21,8],[22,7,22,8],[27,7,27,8],[22,5,22,6],[23,5,23,6],[20,5,20,6],[21,5,21,6],[19,7,19,8],[16,5,16,6],[25,5,25,6],[26,5,26,6],[16,9,16,10],[15,7,15,8],[15,9,15,10],[15,11,15,12],[16,11,16,12],[0,5,0,6],[0,7,0,8],[0,9,0,10],[0,11,0,12],[1,5,1,6],[1,7,1,8],[1,9,1,10],[1,11,1,12]]}
[null,null,null,"Classification","CAS","1st level",null,"meta SPC 1",null,"meta SPC 2",null,"meta SPC 3"]
[1,"Trade name (s)",null,null,null,"Family name",null,"Name of meta-SPC",null,"Name of meta-SPC",null,"Name of meta-SPC"]
[2,"Composition"]
[null,"Substance","Function",null,null,"Min (%)","Max (%)","Min (%)","Max (%)","Min (%)","Max (%)","Min (%)","Max (%)"]
[null,"Active substance 1","Active substance",null,null,{"$f":"MIN(H5,J5,L5)","v":20},{"$f":"MAX(I5,M5,Q5)","v":40},20,40,25,35,20,40,"Examples"]
[null,"Active substance 2","Active substance",null,null,{"$f":"MIN(H6,L6,P6)","v":10},20,10,20,10,20,15,15]
[null,"Surfactant A","Surfactant",null,null,5,10,5,10,5,10,5,10]
[null,"Surfactant B","Dispersant",null,null,4,8,4,8,4,8,4,8]
[null,"Alkali","pH regulation",null,null,3,6,3,6,3,6,3,6]
[{"$nulls":5},2,4,2,4,2,4,2,4]
[null,"Perfume","Perfume",null,null,1,2,1,2,1,2,1,2]
[null,"Azo pigment","Pigment / dye",null,null,1,2,1,2,1,2,1,2]
[null,"Surfactant C","Foaming agent",null,null,1,2,1,2,1,2,1,2]
[null,"Soluble polymer","Thickener",null,null,1,2,1,2,1,2,1,2]
[null,"Water","Solvent",null,null,{"$f":"MIN(H15:M15)","v":4},{"$f":"MAX(H15:M15)","v":52},{"$f":"100-(SUM(I5:I14))","v":4},{"$f":"100-(SUM(H5:H14))","v":52},{"$f":"100-(SUM(K5:K14))","v":9},{"$f":"100-(SUM(J5:J14))","v":47},{"$f":"100-(SUM(M5:M14))","v":9},{"$f":"100-(SUM(L5:L14))","v":47}]
[3,"Components regarded as SoC for tox / env",{"$nulls":5},"Example: Surfactant A (tox); Azo pigment (env)"]
[4,"Type(s) of formulation"]
[5,"Authorised uses","PT"]
[null,null,"Where relevant, an exact description of the authorised use"]
[null,null,"Intended use including application area "]
[null,null,"Target organism(s)"]
[null,null,"Field of use"]
[null,null,"Application method(s)"]
[null,null,"Application rate(s) and frequency"]
[null,null,"Dilution and concentration a.s. in diluted product"]
[null,null,"Category(ies) of users"]
[null,null,"Pack sizes and packaging material"]
[6,"Conditions of storage and shelf-life of the product under normal conditions"]
[7,"Hazard and precautionary statements","Symbols\n\n"]
[null,null,"H-statements"]
[null,null,"P-statements"]
[null,null,"EUH"]
[]
[8,"Further information"]

{"sheet":"meta-SPC1","index":1,"n_rows":15,"n_cols":15,"rows_kept":15,"cut":false,"hidden":false,"merged":[[0,3,0,4],[1,3,1,4]]}
[null,null,null,"meta SPC 1",null,"Individual product of meta SPC 1","Individual product of meta SPC 1",null,"REFERENCE FORMULATION FOR EFFICACY",null,"REFERENCE FORMULATION FOR PHYS-CHEM",null,"REFERENCE FORMULATION FOR HUMAN HEALTH",null,"REFERENCE FORMULATION FOR ENVIRONMENT"]
[1,"Trade name (s)",null,"Name of meta-SPC",null,"Trade name(s)","Trade name(s)",null,"Trade name(s)",null,"Trade name(s)",null,"Trade name(s)",null,"Trade name(s)"]
[2,"Composition"]
[null,"Substance","Function","Min (%)","Max (%)"]
[null,"Active substance 1","Active substance",null,null,"exact conc","exact conc",null,"exact conc",null,"exact conc",null,"exact conc",null,"exact conc"]
[null,"Active substance 2","Active substance",null,null,"exact conc","exact conc",null,"exact conc",null,"exact conc",null,"exact conc",null,"exact conc"]
[null,"Surfactant A","Surfactant",null,null,"exact conc","exact conc",null,"exact conc",null,"exact conc",null,"exact conc",null,"exact conc"]
[null,"Surfactant B","Dispersant",null,null,"exact conc","exact conc",null,"exact conc",null,"exact conc",null,"exact conc",null,"exact conc"]
[null,"Alkali","pH regulation",null,null,"exact conc","exact conc",null,"exact conc",null,"exact conc",null,"exact conc",null,"exact conc"]
[null,"Solvent (SoC)","Solvent ",null,null,"exact conc","exact conc",null,"exact conc",null,"exact conc",null,"exact conc",null,"exact conc"]
[null,"Perfume","Perfume",null,null,"exact conc","exact conc",null,"exact conc",null,"exact conc",null,"exact conc",null,"exact conc"]
[null,"Azo pigment","Pigment / dye",null,null,"exact conc","exact conc",null,"exact conc",null,"exact conc",null,"exact conc",null,"exact conc"]
[null,"Surfactant C","Foaming agent",null,null,"exact conc","exact conc",null,"exact conc",null,"exact conc",null,"exact conc",null,"exact conc"]
[null,"Soluble polymer","Thickener",null,null,"exact conc","exact conc",null,"exact conc",null,"exact conc",null,"exact conc",null,"exact conc"]
[null,"Water","Solvent","To 100%","To 100%","To 100%","To 100%",null,"To 100%",null,"To 100%",null,"To 100%",null,"To 100%"]